bitfinex/quotes_ETHUSD_20250222
["timestamp","ask_amount","ask_price","bid_price","bid_amount"]
[1740187170116,3.71906,2688.9,2688.6,1.03219437]
[1740187170350,3.71913,2688.8,2688.7,0.276]
[1740187170759,3.0,2689.2,2688.7,3.99518]
[1740187170987,5.95643,2689.4,2689.0,0.8292]
[1740187171184,3.71843,2689.3,2689.0,0.82921]
[1740187171333,3.71861,2689.2,2689.0,0.82921]
[1740187171979,7.43726,2689.2,2689.0,0.82921]
[1740187172191,7.43729,2689.2,2689.0,0.82921]
[1740187172363,0.10807589,2689.1,2689.0,0.82921]
[1740187173232,0.10807589,2689.1,2689.0,1.58078478]
[1740187173233,3.82678589,2689.1,2689.0,1.58078478]
[1740187173933,3.82678589,2689.1,2689.0,0.82921]
[1740187174446,0.10807589,2689.1,2689.0,0.82921]
[1740187174647,3.82678589,2689.1,2689.0,0.82921]
[1740187175270,5.17028589,2689.1,2689.0,1e-05]
[1740187175586,7.40828589,2689.1,2689.0,1e-05]
[1740187176290,6.61478589,2689.1,2689.0,1e-05]
[1740187176453,0.10807589,2689.1,2689.0,0.75251]
[1740187177578,3.82678589,2689.1,2689.0,0.75251]
[1740187177780,0.10807589,2689.1,2689.0,0.75251]
[1740187178142,3.82678589,2689.1,2689.0,0.75251]
[1740187178547,0.10807589,2689.1,2689.0,0.75251]
[1740187179453,3.82678589,2689.1,2689.0,0.75251]
[1740187179646,0.10807589,2689.1,2689.0,0.75251]
[1740187180959,3.82678589,2689.1,2689.0,0.75251]
[1740187181283,0.10807589,2689.1,2689.0,0.75251]
[1740187182071,3.82678589,2689.1,2689.0,0.75251]
[1740187182380,0.10807589,2689.1,2689.0,0.75251]
[1740187182986,3.82678589,2689.1,2689.0,0.75251]
[1740187191526,0.10807589,2689.1,2689.0,0.75251]
[1740187191877,3.71859,2689.2,2689.0,0.75251]
[1740187192077,0.10864622,2689.1,2689.0,0.75251]
[1740187194031,3.71871,2689.1,2689.0,1e-05]
[1740187194361,6.06535622,2689.1,2689.0,1e-05]
[1740187194879,10.40095622,2689.1,2689.0,1e-05]
[1740187195733,6.06535622,2689.1,2689.0,1e-05]
[1740187195934,6.85095622,2689.1,2689.0,1e-05]
[1740187196133,7.40095622,2689.1,2689.0,1e-05]
[1740187196499,6.06535622,2689.1,2689.0,1e-05]
[1740187198120,0.10864622,2689.1,2689.0,1e-05]
[1740187198325,5.95648,2689.3,2689.0,0.371903]
[1740187198542,5.95648,2689.3,2689.0,1e-05]
[1740187198853,0.10847224,2689.2,2689.0,1e-05]
[1740187199145,5.95648,2689.3,2689.0,1e-05]
[1740187199355,0.10847224,2689.2,2689.0,1e-05]
[1740187199522,3.71831,2689.4,2689.0,0.452573]
[1740187199722,0.10847224,2689.3,2689.0,1e-05]
[1740187199923,3.71867,2689.2,2689.0,1e-05]
[1740187200336,3.71839,2689.4,2689.0,3.71882]
[1740187200831,0.10847224,2689.3,2689.0,3.71882]
[1740187201040,0.10847224,2689.3,2689.0,4.171372]
[1740187202148,0.10847224,2689.3,2689.0,4.171352]
[1740187202448,3.71832,2689.4,2689.0,4.171352]
[1740187202606,0.10847224,2689.2,2689.0,3.7188]
[1740187202803,3.71832,2689.4,2689.0,3.7188]
[1740187203046,3.71832,2689.4,2689.0,4.46654573]
[1740187203220,0.10847224,2689.3,2689.0,4.46654573]
[1740187203954,0.10847224,2689.3,2689.0,4.46653573]
[1740187204130,3.71871,2689.1,2689.0,0.74775573]
[1740187204724,3.82746254,2689.1,2689.0,0.74775573]
[1740187205769,0.10875254,2689.1,2689.0,4.46660573]
[1740187205922,0.10875254,2689.1,2689.0,4.9939363]
[1740187206130,9.67449,2689.5,2689.0,4.9939363]
[1740187206449,0.10868489,2689.4,2689.0,4.46660573]
[1740187206768,0.10868489,2689.4,2689.1,0.8067]
[1740187206966,3.82700489,2689.4,2689.1,0.8067]
[1740187208658,0.10868489,2689.4,2689.1,0.8067]
[1740187208961,3.57021346,2690.5,2689.1,0.8067]
[1740187208962,0.8238,2690.1,2689.5,3.71803]
[1740187209162,4.54123,2690.1,2689.6,0.27601]
[1740187209416,0.8238,2690.1,2689.2,1e-05]
[1740187209671,5.09223,2689.3,2689.2,1e-05]
[1740187209819,3.71871,2689.1,2689.0,0.74774573]
[1740187210144,3.71809,2689.6,2689.2,0.78]
[1740187210344,4.54169,2689.7,2689.2,0.78]
[1740187210648,4.54179,2689.7,2689.2,0.78]
[1740187210960,3.71775,2689.8,2689.3,3.71842]
[1740187211123,3.7179,2689.7,2689.4,0.821699]
[1740187211328,7.43589,2689.7,2689.4,0.821699]
[1740187211523,3.7177,2689.9,2689.4,0.821699]
[1740187211729,3.71783,2689.8,2689.4,0.821699]
[1740187211957,3.71798,2689.7,2689.4,0.821699]
[1740187212153,3.71798,2689.7,2689.2,0.78]
[1740187212356,3.71798,2689.7,2689.2,4.49855]
[1740187212671,3.71802,2689.6,2689.2,0.78]
[1740187212864,3.71826,2689.5,2689.2,0.78]
[1740187214140,3.71843,2689.3,2689.0,1.7025213]
[1740187214343,3.71866,2689.2,2689.0,1.52604573]
[1740187215140,3.71843,2689.3,2689.0,1.52604573]
[1740187215468,6.75105,2688.5,2687.9,0.7783]
[1740187215676,0.7934,2689.0,2688.3,0.7783]
[1740187215852,3.71902,2688.9,2688.3,0.7783]
[1740187216053,3.82857462,2688.9,2688.4,0.276]
[1740187216379,3.7193,2688.7,2688.4,0.276]
[1740187216776,0.10867524,2688.8,2688.4,0.276]
[1740187217073,0.7934,2689.2,2688.6,3.71932]
[1740187217372,3.71887,2689.0,2688.7,1e-05]
[1740187217546,3.71901,2688.9,2688.8,0.276]
[1740187218270,3.71851,2689.3,2688.8,0.276]
[1740187218574,3.71899,2688.9,2688.8,0.276]
[1740187218781,3.7188,2689.1,2688.8,0.276]
[1740187219136,3.71888,2689.0,2688.8,0.276]
[1740187219665,7.43783,2689.0,2688.8,0.276]
[1740187219874,3.71896,2689.0,2688.8,0.276]
[1740187220049,3.71899,2688.9,2688.8,0.276]
[1740187220374,3.71866,2689.2,2688.8,0.276]
[1740187220564,3.7188,2689.1,2688.8,0.276]
[1740187220971,3.71866,2689.2,2688.8,0.276]
[1740187221159,3.7181,2689.6,2688.9,0.78661]
[1740187221364,3.0275,2689.7,2688.9,0.78661]
[1740187221699,3.71837,2689.4,2688.9,0.78661]
[1740187221843,3.71858,2689.2,2688.9,0.78661]
[1740187222239,3.71885,2689.0,2688.9,0.78661]
[1740187222477,3.71913,2688.8,2688.7,1e-05]
[1740187222774,5.05863,2688.8,2688.7,1e-05]
[1740187224275,3.6860496,2688.8,2688.3,0.27601]
[1740187224475,3.71968,2688.4,2688.3,0.27601]
[1740187224895,3.82771721,2688.4,2688.3,0.27601]
[1740187227701,3.82771721,2688.4,2688.3,1e-05]
[1740187228203,0.10803721,2688.4,2688.3,1e-05]
[1740187228668,3.82771721,2688.4,2688.3,1e-05]
[1740187232607,3.8682661,2688.4,2688.3,1e-05]
[1740187237513,5.95784,2688.3,2687.9,1e-05]
[1740187237725,3.72023,2688.0,2687.9,1e-05]
[1740187238412,3.8687194,2688.0,2687.9,1e-05]
[1740187239387,3.8687194,2688.0,2687.9,0.75051316]
[1740187245821,6.1067194,2688.0,2687.9,0.75051316]
[1740187247724,6.1067194,2688.0,2687.9,1e-05]
[1740187248047,3.72106,2687.4,2687.3,0.79371]
[1740187248346,3.86871767,2687.4,2687.3,1.06971]
[1740187248550,6.10671767,2687.4,2687.3,1e-05]
[1740187248750,9.65671767,2687.4,2687.3,1e-05]
[1740187249044,9.65671767,2687.4,2686.7,0.73589618]
[1740187249045,3.72189,2686.8,2686.7,0.73589618]
[1740187249243,3.86863825,2686.8,2686.7,0.73589618]
[1740187249650,3.86863825,2686.8,2686.7,1e-05]
[1740187251248,0.14674825,2686.8,2686.7,1e-05]
[1740187251652,3.86863825,2686.8,2686.7,1e-05]
[1740187252529,0.14674825,2686.8,2686.7,1e-05]
[1740187252949,5.95962,2687.0,2686.7,1e-05]
[1740187253110,0.14674825,2686.8,2686.7,1e-05]
[1740187253315,2.238,2687.0,2686.7,1e-05]
[1740187253545,0.14674825,2686.9,2686.7,1e-05]
[1740187253958,3.86850825,2686.9,2686.7,1e-05]
[1740187254753,3.72189,2686.8,2686.7,1e-05]
[1740187255119,2.238,2687.0,2686.7,1e-05]
[1740187255321,0.14674825,2686.8,2686.7,1e-05]
[1740187255519,3.9972169,2687.5,2686.8,3.72189]
[1740187255520,2.238,2687.3,2686.8,3.72189]
[1740187256053,2.238,2687.3,2686.8,3.72179]
[1740187256562,3.0,2687.2,2686.7,1.06108712]
[1740187256768,6.72135,2687.2,2686.7,4.78305712]
[1740187257120,3.72189,2686.8,2686.7,1e-05]
[1740187257429,3.72169,2687.0,2686.7,0.80591]
[1740187257954,3.72169,2687.0,2686.7,1.08191]
[1740187258472,3.0537,2687.1,2686.7,4.80389]
[1740187258626,2.788,2687.3,2686.7,6.23843512]
[1740187258830,3.72148,2687.1,2686.7,6.23843512]
[1740187259063,3.72162,2687.0,2686.7,2.51640512]
[1740187259267,3.72162,2687.0,2686.7,1.08191]
[1740187260143,7.44337,2687.0,2686.7,1.08191]
[1740187260463,3.72177,2686.9,2686.7,1.08191]
[1740187260649,2.788,2687.3,2686.7,1.08191]
[1740187260854,3.72174,2687.0,2686.7,1.08191]
[1740187261041,3.72173,2687.0,2686.7,1.08191]
[1740187261365,3.72189,2686.8,2686.7,0.27601]
[1740187261834,4.27163,2687.0,2686.7,0.27601]
[1740187262039,0.55,2687.3,2686.8,0.8059]
[1740187262040,6.77497,2687.3,2686.8,0.8059]
[1740187262243,3.72149,2687.1,2686.8,0.8059]
[1740187262581,3.72185,2686.9,2686.7,0.27601]
[1740187262743,3.72189,2686.8,2686.7,0.27601]
[1740187265629,5.95989,2686.8,2686.7,0.27601]
[1740187265825,6.77559,2686.8,2686.7,1e-05]
[1740187266328,3.72245,2686.4,2686.3,1e-05]
[1740187266528,3.72245,2686.4,2686.3,1.02698237]
[1740187267186,2.238,2686.9,2686.4,3.72244]
[1740187267375,2.238,2687.1,2686.5,0.47494224]
[1740187267585,0.8157,2687.4,2686.8,0.8059]
[1740187267743,3.71981,2688.4,2686.9,1e-05]
[1740187267744,3.7208,2687.6,2686.9,1e-05]
[1740187267945,3.7208,2687.6,2687.0,3.72161]
[1740187268259,2.238,2687.6,2686.9,1e-05]
[1740187268474,3.72044,2687.9,2687.4,3.72104]
[1740187268782,3.86630384,2687.5,2687.4,0.27601]
[1740187268958,4.53663,2687.5,2687.4,0.27601]
[1740187269160,4.68219745,2687.5,2687.4,0.27601]
[1740187269361,10.47019745,2687.5,2687.4,1e-05]
[1740187269589,6.74926745,2687.5,2687.4,1e-05]
[1740187269820,10.47019745,2687.5,2687.4,1e-05]
[1740187270026,2.38356745,2687.5,2687.4,1e-05]
[1740187270224,6.10449745,2687.5,2687.4,1e-05]
[1740187270435,6.65449745,2687.5,2687.4,1e-05]
[1740187270574,7.47019745,2687.5,2687.4,1e-05]
[1740187271694,5.95916,2687.4,2687.1,1e-05]
[1740187272039,2.238,2687.4,2687.1,1e-05]
[1740187272340,0.14629343,2687.3,2687.1,1e-05]
[1740187272705,2.238,2687.7,2687.2,4.55194]
[1740187272935,3.0,2687.6,2687.2,4.55194]
[1740187273817,2.238,2687.7,2687.2,4.55194]
[1740187274004,2.238,2687.7,2687.2,0.8306]
[1740187274205,3.72082,2687.6,2687.2,0.8306]
[1740187274432,3.72093,2687.5,2687.2,0.8306]
[1740187274611,3.7212,2687.3,2687.1,1e-05]
[1740187276339,2.238,2687.4,2687.1,1e-05]
[1740187276542,2.238,2687.4,2687.2,3.72133]
[1740187276929,6.72072,2687.7,2687.2,3.72133]
[1740187276930,2.238,2687.6,2687.2,3.72133]
[1740187277096,3.0,2687.7,2687.3,3.72111]
[1740187277508,3.0,2687.7,2687.3,3.72112]
[1740187277864,5.95852,2687.8,2687.3,3.72112]
[1740187278065,3.72088,2687.6,2687.3,1e-05]
[1740187279060,3.72066,2687.7,2687.3,1e-05]
[1740187282543,3.72065,2687.7,2687.3,1e-05]
[1740187283345,3.72082,2687.6,2687.3,1e-05]
[1740187284059,3.72065,2687.7,2687.3,1e-05]
[1740187284468,0.14659341,2687.6,2687.3,1e-05]
[1740187284816,6.50906,2687.4,2687.3,1e-05]
[1740187285136,6.65563406,2687.4,2687.3,1e-05]
[1740187286387,7.46403406,2687.4,2687.3,1e-05]
[1740187289579,5.95989,2686.8,2686.7,1e-05]
[1740187290103,6.10532192,2686.8,2686.7,1e-05]
[1740187291605,7.42962192,2686.8,2686.7,1e-05]
[1740187292566,7.42962192,2686.8,2685.8,1e-05]
[1740187292567,3.0123,2686.4,2685.8,1e-05]
[1740187292757,3.72297,2686.1,2685.8,1e-05]
[1740187292958,5.96074,2686.2,2685.8,1e-05]
[1740187293201,2.238,2686.2,2685.9,0.72896115]
[1740187293404,0.14504106,2686.1,2686.0,4.51818]
[1740187293757,0.7743,2687.0,2686.0,9.59521]
[1740187293957,3.72224,2686.6,2686.1,1.40473012]
[1740187294153,0.55,2686.7,2686.1,5.12753012]
[1740187294357,3.72177,2686.9,2686.4,3.72239]
[1740187294655,4.49571,2687.2,2686.6,3.72206]
[1740187295014,0.7743,2687.2,2686.7,3.72203]
[1740187295309,3.72173,2687.0,2686.6,1.07121]
[1740187295507,3.72176,2686.9,2686.6,1.07121]
[1740187295790,2.238,2687.0,2686.6,1.07121]
[1740187295990,2.238,2687.0,2686.6,1.550561]
[1740187296192,2.238,2687.0,2686.6,5.272731]
[1740187296351,2.238,2687.2,2686.8,4.48508763]
[1740187296556,5.95935,2687.2,2686.9,0.7588]
[1740187296757,2.238,2687.2,2686.9,0.7588]
[1740187297159,4.2713,2687.3,2686.9,0.7588]
[1740187297160,5.95909,2687.4,2686.9,4.48046]
[1740187297351,2.238,2687.4,2687.0,3.72152]
[1740187297576,2.238,2687.4,2686.9,4.48044]
[1740187297763,6.72088,2687.6,2687.1,3.7214]
[1740187297764,5.95879,2687.6,2687.1,3.7214]
[1740187298165,3.72081,2687.6,2687.2,0.7588]
[1740187298369,2.238,2687.6,2687.3,1e-05]
[1740187299356,0.14574782,2687.5,2687.3,1e-05]
[1740187300200,3.72106,2687.4,2687.3,1e-05]
[1740187300363,5.95906,2687.4,2687.3,1e-05]
[1740187300699,6.10480782,2687.4,2687.3,1e-05]
[1740187301499,5.95934,2687.2,2687.1,1e-05]
[1740187302199,6.10508782,2687.2,2687.1,1e-05]
[1740187304399,6.65508782,2687.2,2687.1,1e-05]
[1740187304704,7.41968782,2687.2,2687.1,1e-05]
[1740187305900,6.10508782,2687.2,2687.1,1e-05]
[1740187307417,6.10508782,2687.2,2686.8,0.75881]
[1740187307627,5.95948,2687.1,2686.8,0.75881]
[1740187307924,3.72122,2687.3,2686.8,5.40303281]
[1740187307925,0.145651,2687.0,2686.8,5.40303281]
[1740187308087,7.44258,2687.3,2686.8,5.40303281]
[1740187308421,0.14568004,2686.9,2686.8,1.68123281]
[1740187308591,3.72143,2687.2,2686.8,5.40312281]
[1740187308792,0.14568004,2686.9,2686.8,5.40312281]
[1740187308992,3.72143,2687.2,2686.8,5.40312281]
[1740187309215,0.14568004,2686.9,2686.8,5.40312281]
[1740187309410,8.95909,2687.4,2686.8,5.40312281]
[1740187309613,0.14568004,2686.9,2686.8,4.4807]
[1740187310234,3.72148,2687.1,2686.8,0.75881]
[1740187310417,0.14568004,2686.9,2686.8,0.75881]
[1740187311024,3.72168,2687.0,2686.8,0.75881]
[1740187311192,0.14568004,2686.9,2686.8,0.75881]
[1740187313107,6.10544004,2686.9,2686.8,1.03481]
[1740187313999,6.10544004,2686.9,2686.8,0.27601]
[1740187314391,6.10544004,2686.9,2686.8,1e-05]
[1740187318346,3.72244,2686.5,2686.3,0.82821]
[1740187318665,3.72244,2686.5,2686.4,0.276]
[1740187319337,3.72245,2686.4,2686.3,0.82821]
[1740187319535,5.96045,2686.4,2686.3,1.10421]
[1740187319842,5.96045,2686.4,2686.3,1e-05]
[1740187324844,5.238,2686.5,2686.3,0.76031]
[1740187325768,3.72245,2686.4,2686.3,0.76031]
[1740187326142,5.96043,2686.5,2686.3,0.76031]
[1740187326344,5.96045,2686.4,2686.3,1e-05]
[1740187326549,5.96086,2686.1,2686.0,1e-05]
[1740187328571,8.96086,2686.1,2686.0,1e-05]
[1740187329138,8.96086,2686.1,2685.4,6.847]
[1740187329139,5.96156,2685.6,2685.5,1e-05]
[1740187329353,3.72397,2685.3,2685.2,0.27601]
[1740187329746,5.9617,2685.5,2685.2,0.27601]
[1740187329950,0.14346231,2685.3,2685.2,2.01115831]
[1740187330140,3.72344,2685.7,2685.2,2.01115831]
[1740187330344,0.14316808,2685.3,2685.2,2.01115831]
[1740187330574,3.72344,2685.7,2685.2,2.01115831]
[1740187330787,0.14316808,2685.3,2685.2,1.02752731]
[1740187331078,3.0,2685.7,2685.2,1.02752731]
[1740187331240,0.14316808,2685.3,2685.2,1.02752731]
[1740187331869,3.72358,2685.6,2685.2,1.02752731]
[1740187332069,0.14316808,2685.3,2685.2,1.02752731]
[1740187332270,2.24,2685.7,2685.2,1.02752731]
[1740187332472,0.14316808,2685.3,2685.2,1.02752731]
[1740187332673,3.72387,2685.4,2685.2,1.02752731]
[1740187332853,3.86713808,2685.3,2685.2,0.75152731]
[1740187333054,3.86713808,2685.3,2685.2,1e-05]
[1740187333376,6.86713808,2685.3,2685.2,1e-05]
[1740187333949,3.14316808,2685.3,2685.0,1.01401343]
[1740187334175,5.96425,2685.1,2685.0,0.73801343]
[1740187334473,3.72453,2684.9,2684.8,0.276]
[1740187335202,6.10664781,2684.9,2684.8,0.276]
[1740187335500,3.86664781,2684.9,2684.8,0.276]
[1740187336160,0.14211781,2684.9,2684.8,0.276]
[1740187336396,0.55,2685.3,2684.8,0.276]
[1740187336703,0.14211781,2684.9,2684.8,0.276]
[1740187337296,3.72428,2685.1,2684.8,0.276]
[1740187337507,0.55,2685.3,2684.8,0.276]
[1740187337508,3.72453,2684.9,2684.8,0.276]
[1740187338058,3.86664781,2684.9,2684.8,0.276]
[1740187338261,0.14211781,2684.9,2684.8,0.276]
[1740187338505,0.14211781,2684.9,2684.8,5.16179235]
[1740187338904,0.14211781,2684.9,2684.8,1.43712235]
[1740187339110,3.72427,2685.1,2684.8,1.0525]
[1740187339277,0.14211781,2684.9,2684.8,1.0525]
[1740187339464,3.72428,2685.1,2684.8,1.0525]
[1740187339796,0.14210813,2685.0,2684.8,1.0525]
[1740187340017,3.72418,2685.2,2684.8,1.05251]
[1740187340219,0.14210813,2684.9,2684.8,1.05251]
[1740187340685,3.72399,2685.3,2684.8,6.86440835]
[1740187341016,6.78129,2685.5,2684.8,6.86440835]
[1740187341017,3.72431,2685.1,2684.8,1.05251]
[1740187341236,3.86624813,2685.2,2684.8,1.05251]
[1740187341385,3.0,2685.3,2684.8,1.05251]
[1740187341585,0.14210813,2685.1,2684.8,1.05251]
[1740187341802,3.72405,2685.3,2684.8,4.77711]
[1740187342012,0.14210813,2685.0,2684.9,7.29474346]
[1740187342195,3.7238,2685.5,2685.0,3.72432]
[1740187342408,3.7238,2685.5,2685.0,3.72433]
[1740187342604,3.0,2685.4,2685.0,1e-05]
[1740187342813,3.72406,2685.3,2685.0,1e-05]
[1740187343120,3.72384,2685.4,2685.0,1e-05]
[1740187343299,3.72384,2685.4,2685.0,3.7244]
[1740187343694,0.55,2685.4,2685.0,1e-05]
[1740187343898,3.72425,2685.1,2685.0,1e-05]
[1740187344506,3.8662515,2685.1,2685.0,1e-05]
[1740187345368,3.8662515,2685.1,2685.0,0.73549617]
[1740187345658,2.3820015,2685.1,2685.0,0.73549617]
[1740187346526,0.1420015,2685.1,2685.0,4.45988617]
[1740187346729,2.24,2685.3,2685.0,2.01620813]
[1740187347056,3.72358,2685.6,2685.2,4.34671346]
[1740187347257,3.72378,2685.5,2685.2,4.34671346]
[1740187347565,0.14208875,2685.5,2685.2,4.34671346]
[1740187348552,0.14208875,2685.5,2685.2,8.07082346]
[1740187348765,2.38208875,2685.5,2685.2,8.07082346]
[1740187349342,2.38208875,2685.5,2685.2,11.79484346]
[1740187349543,2.38208875,2685.5,2685.2,9.32376642]
[1740187350001,2.38208875,2685.5,2685.2,13.04780642]
[1740187350198,2.38208875,2685.5,2685.2,9.32376642]
[1740187350982,0.14208875,2685.5,2685.3,3.7239]
[1740187351278,0.14208875,2685.5,2685.2,9.32386642]
[1740187351477,0.14208875,2685.5,2685.2,8.07083346]
[1740187352352,3.86579875,2685.5,2685.2,4.34672346]
[1740187352581,6.10579875,2685.5,2685.2,4.34672346]
[1740187352987,2.38208875,2685.5,2685.2,4.34672346]
[1740187353395,2.38208875,2685.5,2685.2,8.07075346]
[1740187353578,0.14208875,2685.5,2685.4,3.72384]
[1740187354822,2.24,2685.7,2685.4,3.72385]
[1740187355009,0.14263154,2685.5,2685.4,3.72385]
[1740187355210,2.24,2685.7,2685.4,3.72385]
[1740187355403,0.14263154,2685.5,2685.4,3.72385]
[1740187355583,2.24,2685.7,2685.4,3.72385]
[1740187355882,0.14263154,2685.5,2685.4,3.72385]
[1740187356086,2.24,2685.7,2685.4,3.72385]
[1740187356087,2.24,2685.7,2685.4,1e-05]
[1740187356307,0.14263154,2685.5,2685.4,3.72385]
[1740187356909,2.24,2685.7,2685.4,3.72385]
[1740187357398,0.14263154,2685.6,2685.4,3.72385]
[1740187357611,0.14263154,2685.6,2685.5,3.7237]
[1740187357907,0.14263154,2685.6,2685.4,1e-05]
[1740187358282,3.86625154,2685.6,2685.4,1e-05]
[1740187358478,2.38263154,2685.6,2685.4,1e-05]
[1740187358895,3.7237,2685.5,2685.4,1e-05]
[1740187359301,3.86641875,2685.5,2685.4,1e-05]
[1740187359513,0.14271875,2685.5,2685.4,1e-05]
[1740187365417,0.14271875,2685.5,2685.4,3.72385]
[1740187366514,2.24,2685.8,2685.4,4.50708257]
[1740187366716,2.24,2685.8,2685.7,3.72342]
[1740187366934,3.72181,2686.9,2685.7,3.72342]
[1740187367135,0.7745,2686.4,2685.9,7.29332346]
[1740187367427,5.96296,2686.1,2685.9,3.57021346]
[1740187367635,2.24,2686.1,2685.8,1e-05]
[1740187367835,5.96314,2685.9,2685.8,1e-05]
[1740187368138,6.73764,2685.9,2685.8,1e-05]
[1740187368535,2.24,2685.9,2685.8,1e-05]
[1740187369603,5.96314,2685.9,2685.8,1e-05]
[1740187371241,6.51314,2685.9,2685.8,1e-05]
[1740187371409,7.27114,2685.9,2685.8,1e-05]
[1740187371807,10.27114,2685.9,2685.8,1e-05]
[1740187372838,3.7228,2686.2,2685.3,5.34802446]
[1740187372839,2.24,2685.7,2685.6,3.72356]
[1740187373043,2.24,2686.0,2685.7,0.7681]
[1740187373343,5.96308,2686.0,2685.7,0.7681]
[1740187374016,5.24,2686.0,2685.7,0.7681]
[1740187374213,0.14312576,2685.9,2685.7,0.7681]
[1740187374627,2.38312576,2685.9,2685.7,0.7681]
[1740187375560,0.14312576,2685.9,2685.8,3.72328]
[1740187375878,2.24,2686.4,2686.0,3.723]
[1740187376076,2.24,2686.4,2686.0,3.57022346]
[1740187376278,2.24,2686.4,2686.3,0.8276]
[1740187376575,3.722,2686.8,2686.3,0.8276]
[1740187376576,2.24,2686.5,2686.3,4.55008]
[1740187376755,2.24,2686.5,2686.3,0.8276]
[1740187376957,2.24,2686.5,2686.3,0.82761]
[1740187378077,2.24,2686.8,2686.3,0.82761]
[1740187378265,2.24,2686.6,2686.3,4.39782346]
[1740187378667,2.24,2686.6,2686.4,3.72245]
[1740187378901,0.7612,2687.0,2686.3,4.39782346]
[1740187379182,2.24,2686.9,2686.5,3.7223]
[1740187379558,5.96178,2686.9,2686.5,3.7223]
[1740187379761,2.24,2686.9,2686.5,3.7223]
[1740187379969,2.24,2686.8,2686.6,3.72204]
[1740187380266,2.24,2686.8,2686.7,0.8276]
[1740187380455,0.7612,2687.2,2686.7,0.8276]
[1740187380648,4.48257,2687.2,2686.7,4.54963]
[1740187380873,3.0,2687.1,2686.7,4.54963]
[1740187381699,3.72102,2687.5,2686.9,3.72168]
[1740187381986,3.72062,2687.8,2687.2,3.72132]
[1740187382283,3.72062,2687.8,2687.3,0.454892]
[1740187382585,6.72068,2687.7,2687.3,0.454892]
[1740187383167,3.72066,2687.7,2687.4,0.8276]
[1740187383768,3.72042,2687.9,2687.4,0.8276]
[1740187383999,3.72051,2687.8,2687.4,0.8276]
[1740187384793,3.72046,2687.9,2687.4,0.8276]
[1740187385106,3.72046,2687.9,2687.4,4.54864]
[1740187385306,3.72046,2687.9,2687.4,5.87848765]
[1740187385477,3.72053,2687.8,2687.4,2.15744765]
[1740187386303,3.72053,2687.8,2687.4,2.15744765]
[1740187387197,3.72051,2687.8,2687.4,2.15744765]
[1740187387605,3.72051,2687.8,2687.4,2.15745765]
[1740187388566,3.72046,2687.9,2687.4,2.15745765]
[1740187388766,3.72066,2687.7,2687.4,2.15745765]
[1740187388968,3.72066,2687.7,2687.5,0.33397607]
[1740187389167,0.14571161,2687.6,2687.5,0.33397607]
[1740187390318,3.72052,2687.8,2687.5,0.33397607]
[1740187390551,0.14571161,2687.7,2687.5,0.33397607]
[1740187390714,3.72052,2687.8,2687.5,0.33397607]
[1740187390913,0.14571161,2687.7,2687.5,0.33397607]
[1740187391248,3.72052,2687.8,2687.5,0.33397607]
[1740187391448,0.14571161,2687.6,2687.5,0.33397607]
[1740187391646,3.72079,2687.6,2687.5,0.33397607]
[1740187391859,3.86650161,2687.6,2687.4,0.82761]
[1740187392016,3.86650161,2687.6,2687.4,1.10361]
[1740187392569,0.14571161,2687.6,2687.4,1.10361]
[1740187393043,3.72052,2687.8,2687.4,1.10361]
[1740187393363,3.72046,2687.9,2687.4,1.10361]
[1740187393574,3.86675967,2687.7,2687.4,1.10361]
[1740187393864,3.72069,2687.7,2687.4,1.6588321]
[1740187394069,3.86688967,2687.6,2687.4,1.6588321]
[1740187394859,0.14606967,2687.6,2687.4,1.6588321]
[1740187395328,6.72033,2688.0,2687.5,3.72083]
[1740187395520,3.72057,2687.8,2687.5,0.98281331]
[1740187396035,0.14677624,2687.7,2687.5,0.98281331]
[1740187396246,3.72057,2687.8,2687.5,0.98281331]
[1740187396457,0.14677624,2687.6,2687.5,0.98281331]
[1740187396824,3.72057,2687.8,2687.5,0.98281331]
[1740187397024,0.14677624,2687.6,2687.5,0.98281331]
[1740187397257,3.72074,2687.7,2687.4,1.6588321]
[1740187397441,0.14684398,2687.6,2687.4,5.3798721]
[1740187397647,3.72053,2687.8,2687.4,5.3798721]
[1740187397857,3.72053,2687.8,2687.5,0.98283531]
[1740187399137,3.72039,2687.9,2687.5,0.98283531]
[1740187399340,3.72039,2687.9,2687.6,1e-05]
[1740187401776,7.44036,2688.1,2687.6,3.72077]
[1740187402075,6.71983,2688.3,2687.8,3.72044]
[1740187402248,3.71978,2688.4,2687.9,4.170224]
[1740187402572,0.7884,2688.6,2688.1,3.72004]
[1740187402773,3.71881,2689.1,2688.2,1e-05]
[1740187402774,3.71933,2688.7,2688.2,1e-05]
[1740187402959,3.71913,2688.8,2688.3,4.09175]
[1740187403163,3.71937,2688.7,2688.4,0.7788]
[1740187403862,3.71941,2688.6,2688.4,0.7788]
[1740187404182,0.14206465,2688.5,2688.4,0.7788]
[1740187405064,0.14206465,2688.5,2688.4,1.293475]
[1740187405489,3.71934,2688.7,2688.4,0.7788]
[1740187405689,0.14206465,2688.5,2688.4,0.7788]
[1740187405889,3.71922,2688.8,2688.4,0.7788]
[1740187406091,0.14206465,2688.5,2688.4,0.7788]
[1740187407979,3.71927,2688.7,2688.4,0.7788]
[1740187408180,0.14206465,2688.5,2688.4,0.7788]
[1740187408381,3.71948,2688.6,2688.4,0.99483895]
[1740187408582,0.14206465,2688.5,2688.4,0.99483895]
[1740187410598,5.95915,2688.8,2688.4,0.99483895]
[1740187410782,0.14255787,2688.5,2688.4,0.99483895]
[1740187410985,3.71929,2688.7,2688.4,0.99483895]
[1740187411186,0.14255787,2688.5,2688.4,0.99483895]
[1740187411413,3.71927,2688.7,2688.4,0.99483895]
[1740187411717,0.14255787,2688.5,2688.4,0.99483895]
[1740187412213,5.95921,2688.8,2688.4,0.99483895]